[Event "9th Amsterdam Science Park A 2019"]
[Site "Amsterdam"]
[Date "2019.07.13"]
[Round "8.8"]
[White "Vereggen, Lars"]
[Black "De Jong, Tom"]
[Result "1-0"]
[ECO "E81"]
[WhiteElo "2370"]
[BlackElo "2176"]
[Annotator "NA"]
[PlyCount "69"]
[EventDate "2019.07.06"]
[EventType "swiss"]
[EventCountry "NED"]
[SourceTitle "playchess.com"]
[Source "ChessBase"]
[SourceQuality "1"]
[TimeControl "40/5400+30:1800+30"]

1. c4 {[%emt 0:00:00]} Nf6 {[%emt 0:00:45]} 2. Nc3 {[%emt 0:00:00]} g6 {[%emt 0:02:52]} 3. e4 {[%emt 0:00:14]} d6 {[%emt 0:00:06]} 4. d4 {[%emt 0:00:11]} Bg7 {[%emt 0:00:07]} 5. f3 {[%emt 0:00:08]} O-O {[%emt 0:00:08]} 6. Be3 {[%emt 0:00:04]} Nbd7 {[%emt 0:00:24]} 7. Nge2 {[%emt 0:00:24]} c5 {[%emt 0:00:06]} 8. Qd2 {[%emt 0:00:23]} a6 {[%emt 0:00:30]} 9. dxc5 {[%emt 0:08:24]} dxc5 {[%emt 0:02:26]} 10. Nf4 {[%emt 0:09:10]} Qa5 {[%emt 0:12:18]} 11. Be2 {[%emt 0:02:02]} e6 {[%emt 0:04:35]} 12. O-O {[%emt 0:01:10]} Ne5 {[%emt 0:00:54]} 13. Rad1 {[%emt 0:06:45]} Nc6 {[%emt 0:04:55]} 14. Nd3 {[%emt 0:00:21]} Nd7 {[%emt 0:01:01]} 15. f4 {[%emt 0:00:22]} b5 {[%emt 0:14:24]} 16. e5 {[%emt 0:03:18]} Nd4 {[%emt 0:08:53]} 17. Nxc5 {[%emt 0:04:26]} Nxe2+ {[%emt 0:03:48]} 18. Qxe2 {[%emt 0:02:49]} b4 {[%emt 0:08:30]} 19. N3e4 {[%emt 0:00:23]} Nxc5 {[%emt 0:02:01]} 20. Nxc5 {[%emt 0:00:09]} Re8 {[%emt 0:02:49]} 21. b3 {[%emt 0:00:36]} Qc7 {[%emt 0:01:24]} 22. Qd2 {[%emt 0:00:54]} a5 {[%emt 0:00:57]} 23. Qd6 {[%emt 0:00:10]} Qxd6 {[%emt 0:00:36]} 24. exd6 {[%emt 0:00:11]} Rd8 {[%emt 0:00:49]} 25. d7 {[%emt 0:05:54]} Ba6 {[%emt 0:00:02]} 26. Rd6 {[%emt 0:01:33]} Bf8 {[%emt 0:01:03]} 27. Rxa6 {[%emt 0:01:53]} Bxc5 {[%emt 0:01:05]} 28. Bxc5 {[%emt 0:00:05]} Rxa6 {[%emt 0:00:06]} 29. Rd1 {[%emt 0:00:03]} Raa8 {[%emt 0:05:40]} 30. Be7 {[%emt 0:00:12]} f5 {[%emt 0:00:16]} 31. c5 {[%emt 0:00:07]} Kf7 {[%emt 0:00:29]} 32. Bxd8 {[%emt 0:00:08]} Rxd8 {[%emt 0:00:05]} 33. c6 {[%emt 0:00:05]} Ke7 {[%emt 0:00:58]} 34. c7 {[%emt 0:00:27]} Rxd7 {[%emt 0:00:20]} 35. Rc1 {[%emt 0:00:13]} 1-0

[Event "9th Amsterdam Science Park A 2019"]
[Site "Amsterdam"]
[Date "2019.07.13"]
[Round "8.9"]
[White "Mesman, Edwyn"]
[Black "Belous, Mikhail"]
[Result "0-1"]
[ECO "E73"]
[WhiteElo "2204"]
[BlackElo "2289"]
[Annotator "NA"]
[PlyCount "70"]
[EventDate "2019.07.06"]
[EventType "swiss"]
[EventCountry "NED"]
[SourceTitle "playchess.com"]
[Source "ChessBase"]
[SourceQuality "1"]
[TimeControl "40/5400+30:1800+30"]

1. d4 {[%emt 0:01:17]} Nf6 {[%emt 0:00:00]} 2. c4 {[%emt 0:00:11]} g6 {[%emt 0:00:00]} 3. Nc3 {[%emt 0:00:07]} Bg7 {[%emt 0:00:00]} 4. e4 {[%emt 0:00:07]} d6 {[%emt 0:00:00]} 5. Be2 {[%emt 0:00:05]} O-O {[%emt 0:00:00]} 6. Be3 {[%emt 0:00:06]} e5 {[%emt 0:06:47]} 7. d5 {[%emt 0:00:23]} Na6 {[%emt 0:00:06]} 8. g4 {[%emt 0:00:17]} Nc5 {[%emt 0:00:16]} 9. f3 {[%emt 0:00:05]} h5 {[%emt 0:00:09]} 10. g5 {[%emt 0:00:50]} Nh7 {[%emt 0:00:19]} 11. h4 {[%emt 0:00:25]} f6 {[%emt 0:00:25]} 12. b4 {[%emt 0:11:00]} Na6 {[%emt 0:05:26]} 13. Qa4 {[%emt 0:01:34]} fxg5 {[%emt 0:01:59]} 14. hxg5 {[%emt 0:01:06]} Nxg5 {[%emt 0:00:44]} 15. O-O-O {[%emt 0:00:26]} Nb8 {[%emt 0:10:52]} 16. c5 {[%emt 0:06:59]} a5 {[%emt 0:06:40]} 17. Kb1 {[%emt 0:03:41]} Kh7 {[%emt 0:07:18]} 18. Rc1 {[%emt 0:24:01]} Bh6 {[%emt 0:05:54]} 19. Bf2 {[%emt 0:03:05]} Nd7 {[%emt 0:06:15]} 20. cxd6 {[%emt 0:05:39]} cxd6 {[%emt 0:00:12]} 21. Rc2 {[%emt 0:00:12]} Nf6 {[%emt 0:03:41]} 22. bxa5 {[%emt 0:05:31]} Nfxe4 {[%emt 0:08:45]} 23. Nxe4 {[%emt 0:12:43]} Nxe4 {[%emt 0:00:34]} 24. Bh4 {[%emt 0:00:05]} Ng5 {[%emt 0:08:00]} 25. Bd3 {[%emt 0:02:20]} Rf4 {[%emt 0:05:02]} 26. Be4 {[%emt 0:07:32]} Bf5 {[%emt 0:11:31]} 27. Bxg5 {[%emt 0:04:52]} Bxg5 {[%emt 0:00:48]} 28. Nh3 {[%emt 0:00:30]} Bxe4 {[%emt 0:02:25]} 29. fxe4 {[%emt 0:00:05]} Rf7 {[%emt 0:00:54]} 30. Qa3 {[%emt 0:02:28]} Bh6 {[%emt 0:00:58]} 31. Rg1 {[%emt 0:01:00]} Qxa5 {[%emt 0:01:34]} 32. Qxd6 {[%emt 0:06:39]} Qb5+ {[%emt 0:01:04]} 33. Rb2 {[%emt 0:00:38]} Rf1+ {[%emt 0:00:23]} 34. Rxf1 {[%emt 0:00:05]} Qxf1+ {[%emt 0:00:07]} 35. Kc2 {[%emt 0:00:03]} Rc8+ {[%emt 0:00:41]} 0-1

[Event "9th Amsterdam Science Park A 2019"]
[Site "Amsterdam"]
[Date "2019.07.13"]
[Round "8.10"]
[White "Goes, Sten"]
[Black "Elgersma, Onno"]
[Result "0-1"]
[ECO "B12"]
[WhiteElo "2183"]
[BlackElo "2232"]
[Annotator "NA"]
[PlyCount "73"]
[EventDate "2019.07.06"]
[EventType "swiss"]
[EventCountry "NED"]
[SourceTitle "playchess.com"]
[Source "ChessBase"]
[SourceQuality "1"]
[TimeControl "40/5400+30:1800+30"]

1. e4 {[%emt 0:00:00]} c6 {[%emt 0:00:00]} 2. d4 {[%emt 0:00:00]} d5 {[%emt 0:00:00]} 3. e5 {[%emt 0:00:00]} Bf5 {[%emt 0:00:00]} 4. h4 {[%emt 0:00:00]} h5 {[%emt 0:00:00]} 5. c4 {[%emt 0:00:20]} e6 {[%emt 0:07:20]} 6. Nc3 {[%emt 0:00:32]} Ne7 {[%emt 0:02:06]} 7. Nge2 {[%emt 0:00:20]} Nd7 {[%emt 0:11:31]} 8. Ng3 {[%emt 0:03:58]} Bg6 {[%emt 0:01:43]} 9. cxd5 {[%emt 0:01:07]} cxd5 {[%emt 0:05:24]} 10. Bg5 {[%emt 0:01:15]} Qb6 {[%emt 0:11:06]} 11. Bb5 {[%emt 0:00:13]} Nc6 {[%emt 0:03:29]} 12. O-O {[%emt 0:05:44]} Rc8 {[%emt 0:04:28]} 13. Rc1 {[%emt 0:03:33]} a6 {[%emt 0:13:17]} 14. Bxc6 {[%emt 0:01:18]} Rxc6 {[%emt 0:02:51]} 15. Nce2 {[%emt 0:01:25]} f6 {[%emt 0:07:50]} 16. Rxc6 {[%emt 0:18:29]} bxc6 {[%emt 0:01:36]} 17. Nf4 {[%emt 0:16:21]} Bf7 {[%emt 0:12:13]} 18. Ngxh5 {[%emt 0:10:42]} fxg5 {[%emt 0:00:41]} 19. hxg5 {[%emt 0:00:15]} g6 {[%emt 0:05:28]} 20. g4 {[%emt 0:14:19]} gxh5 {[%emt 0:03:35]} 21. gxh5 {[%emt 0:03:38]} Rg8 {[%emt 0:00:45]} 22. Nh3 {[%emt 0:06:02]} Bh6 {[%emt 0:01:32]} 23. f4 {[%emt 0:01:29]} Nxe5 {[%emt 0:01:44]} 24. Kh1 {[%emt 0:01:45]} Nc4 {[%emt 0:00:52]} 25. Re1 {[%emt 0:01:16]} Nd6 {[%emt 0:00:44]} 26. g6 {[%emt 0:03:26]} Ne4 {[%emt 0:00:35]} 27. Qg4 {[%emt 0:02:41]} Qxd4 {[%emt 0:00:57]} 28. f5 {[%emt 0:00:03]} exf5 {[%emt 0:01:38]} 29. Qxf5 {[%emt 0:00:15]} Rf8 {[%emt 0:00:18]} 30. Qc8+ {[%emt 0:01:40]} Ke7 {[%emt 0:00:04]} 31. Qc7+ {[%emt 0:00:12]} Ke6 {[%emt 0:00:23]} 32. Qxc6+ {[%emt 0:01:07]} Kf5 {[%emt 0:01:01]} 33. Rf1+ {[%emt 0:00:33]} Kg4 {[%emt 0:00:44]} 34. Qd7+ {[%emt 0:00:01]} Kg3 {[%emt 0:00:29]} 35. Qf5 {[%emt 0:02:47]} Be6 {[%emt 0:00:34]} 36. Rf3+ {[%emt 0:00:37]} Kh4 {[%emt 0:00:07]} 37. Kg2 {[%emt 0:00:00]} 0-1

[Event "9th Amsterdam Science Park A 2019"]
[Site "Amsterdam"]
[Date "2019.07.13"]
[Round "8.11"]
[White "Van Baar, Esper"]
[Black "Smirnova, Ekaterina"]
[Result "1/2-1/2"]
[ECO "C07"]
[WhiteElo "2108"]
[BlackElo "2184"]
[Annotator "NA"]
[PlyCount "122"]
[EventDate "2019.07.06"]
[EventType "swiss"]
[EventCountry "NED"]
[SourceTitle "playchess.com"]
[Source "ChessBase"]
[SourceQuality "1"]
[TimeControl "40/5400+30:1800+30"]

1. e4 {[%emt 0:01:34]} e6 {[%emt 0:00:00]} 2. d4 {[%emt 0:00:08]} d5 {[%emt 0:00:00]} 3. Nd2 {[%emt 0:00:13]} c5 {[%emt 0:00:00]} 4. exd5 {[%emt 0:00:33]} Qxd5 {[%emt 0:00:00]} 5. Ngf3 {[%emt 0:00:24]} cxd4 {[%emt 0:00:11]} 6. Bc4 {[%emt 0:00:02]} Qd6 {[%emt 0:00:07]} 7. O-O {[%emt 0:03:02]} Nf6 {[%emt 0:00:10]} 8. Nb3 {[%emt 0:00:05]} Nc6 {[%emt 0:00:05]} 9. Nbxd4 {[%emt 0:00:14]} Nxd4 {[%emt 0:00:06]} 10. Nxd4 {[%emt 0:00:03]} a6 {[%emt 0:00:26]} 11. Re1 {[%emt 0:01:14]} Qc7 {[%emt 0:00:30]} 12. Bb3 {[%emt 0:01:27]} Bd7 {[%emt 0:00:22]} 13. c3 {[%emt 0:04:27]} Bd6 {[%emt 0:01:21]} 14. h3 {[%emt 0:00:46]} O-O-O {[%emt 0:00:11]} 15. Qf3 {[%emt 0:06:15]} Qc5 {[%emt 0:02:54]} 16. Be3 {[%emt 0:03:53]} Qe5 {[%emt 0:04:36]} 17. g3 {[%emt 0:02:54]} Qh5 {[%emt 0:02:09]} 18. Qxh5 {[%emt 0:03:00]} Nxh5 {[%emt 0:01:27]} 19. Rad1 {[%emt 0:12:26]} Bc7 {[%emt 0:02:43]} 20. Nf3 {[%emt 0:05:58]} Nf6 {[%emt 0:08:52]} 21. Ng5 {[%emt 0:10:11]} Be8 {[%emt 0:01:00]} 22. Bd4 {[%emt 0:02:17]} h6 {[%emt 0:03:32]} 23. Bxe6+ {[%emt 0:08:28]} fxe6 {[%emt 0:01:17]} 24. Nxe6 {[%emt 0:00:04]} Bd7 {[%emt 0:04:33]} 25. Nxd8 {[%emt 0:01:43]} Bxd8 {[%emt 0:00:05]} 26. Kh2 Rf8 {[%emt 0:00:35]} 27. Bc5 {[%emt 0:03:50]} Rf7 28. Rd2 {[%emt 0:06:29]} Bc6 {[%emt 0:01:33]} 29. Rde2 {[%emt 0:02:40]} Rd7 {[%emt 0:02:41]} 30. c4 {[%emt 0:03:21]} a5 31. b3 {[%emt 0:01:23]} h5 {[%emt 0:15:10]} 32. a3 Rd3 {[%emt 0:02:56]} 33. b4 {[%emt 0:02:39]} axb4 34. axb4 Rc3 {[%emt 0:05:28]} 35. b5 {[%emt 0:03:50]} Rxc4 {[%emt 0:01:32]} 36. bxc6 {[%emt 0:00:09]} Rxc5 {[%emt 0:00:04]} 37. cxb7+ {[%emt 0:00:04]} Kxb7 {[%emt 0:00:10]} 38. Re5 Rc2 39. Kg2 {[%emt 0:01:50]} Bb6 {[%emt 0:06:05]} 40. R1e2 {[%emt 0:02:43]} Rxe2 {[%emt 0:01:02]} 41. Rxe2 {[%emt 0:30:10]} Bc5 {[%emt 0:30:24]} 42. Re5 {[%emt 0:05:25]} Kc6 {[%emt 0:00:16]} 43. Kf3 {[%emt 0:02:22]} Bf8 {[%emt 0:01:08]} 44. Ke2 {[%emt 0:00:00]} Kd7 {[%emt 0:00:00]} 45. f4 {[%emt 0:00:00]} Be7 {[%emt 0:00:00]} 46. Kf3 {[%emt 0:00:00]} Ke8 {[%emt 0:00:00]} 47. Ra5 {[%emt 0:00:00]} Kf7 {[%emt 0:00:00]} 48. Ke3 {[%emt 0:00:00]} g6 {[%emt 0:00:00]} 49. Kd4 {[%emt 0:00:00]} Nd7 {[%emt 0:00:00]} 50. Rb5 {[%emt 0:00:00]} Nf6 {[%emt 0:00:00]} 51. Rb7 {[%emt 0:00:00]} Ke6 {[%emt 0:00:00]} 52. Rb5 {[%emt 0:00:00]} Kf7 {[%emt 0:00:00]} 53. Ke5 {[%emt 0:00:00]} Nd7+ {[%emt 0:00:00]} 54. Kd5 {[%emt 0:00:00]} Nf6+ {[%emt 0:00:00]} 55. Kd4 {[%emt 0:00:00]} Ke6 {[%emt 0:00:00]} 56. Rb6+ {[%emt 0:00:21]} Kf7 {[%emt 0:00:00]} 57. Rc6 {[%emt 0:00:25]} Nd7 {[%emt 0:00:00]} 58. g4 {[%emt 0:04:47]} hxg4 {[%emt 0:00:00]} 59. hxg4 {[%emt 0:00:01]} Nf6 {[%emt 0:00:00]} 60. g5 {[%emt 0:00:13]} Nh5 {[%emt 0:00:00]} 61. Ke5 {[%emt 0:03:26]} Ng7 {[%emt 0:00:00]} 1/2-1/2

[Event "9th Amsterdam Science Park A 2019"]
[Site "Amsterdam"]
[Date "2019.07.13"]
[Round "8.12"]
[White "Tirelli, Mauro"]
[Black "Bogaard, Milo"]
[Result "1/2-1/2"]
[ECO "B24"]
[WhiteElo "2247"]
[BlackElo "2100"]
[Annotator "NA"]
[PlyCount "80"]
[EventDate "2019.07.06"]
[EventType "swiss"]
[EventCountry "NED"]
[SourceTitle "playchess.com"]
[Source "ChessBase"]
[SourceQuality "1"]
[TimeControl "40/5400+30:1800+30"]

1. e4 c5 2. Nc3 Nc6 3. Nf3 e5 4. Bc4 g6 5. h4 h6 6. h5 g5 7. d3 d6 8. Nh2 Bg7 9. Nf1 Nge7 10. Ne3 O-O 11. a3 Kh8 12. b4 b6 13. Rb1 f5 14. bxc5 bxc5 15. Bd2 f4 16. Ned5 Nxd5 17. Nxd5 a6 18. c3 Bd7 19. Rb6 Ne7 20. Rxd6 Nxd5 21. Bxd5 Qc7 22. Bxa8 Qxd6 23. Bd5 a5 24. a4 Rb8 25. Qc2 Bxa4 26. Qa2 Be8 27. Ke2 a4 28. f3 Bd7 29. Rb1 Rb6 30. Kd1 Be8 31. Kc2 Rxb1 32. Kxb1 Qa6 33. Bc4 Bb5 34. Bxb5 Qxb5+ 35. Kc2 Qe8 36. Qd5 Qxh5 37. Qxc5 Qh1 38. Qc8+ Kh7 39. Qf5+ Kh8 40. Qc8+ Kh7 1/2-1/2

[Event "9th Amsterdam Science Park A 2019"]
[Site "Amsterdam"]
[Date "2019.07.14"]
[Round "9.1"]
[White "Van der Lende, Ilias"]
[Black "Ten Hertog, Hugo"]
[Result "1-0"]
[ECO "B06"]
[WhiteElo "2350"]
[BlackElo "2484"]
[Annotator "ChessBase"]
[PlyCount "83"]
[EventDate "2019.07.06"]
[EventType "swiss"]
[EventCountry "NED"]
[SourceTitle "playchess.com"]
[Source "ChessBase"]
[SourceQuality "1"]
[TimeControl "40/5400+30:1800+30"]

1. d4 {[%emt 0:01:53]} g6 {[%emt 0:00:18]} 2. e4 {[%emt 0:01:06]} Bg7 {[%emt 0:00:05]} 3. Nc3 {[%emt 0:00:07]} a6 {[%emt 0:01:06]} 4. Be3 {[%emt 0:00:43]} b5 {[%emt 0:00:17]} 5. a4 {[%emt 0:03:43]} b4 {[%emt 0:00:12]} 6. Na2 {[%emt 0:00:06]} a5 {[%emt 0:03:50]} 7. Bd3 {[%emt 0:04:21]} Nf6 {[%emt 0:04:08]} 8. Ne2 {[%emt 0:05:20]} O-O {[%emt 0:20:54]} 9. f3 {[%emt 0:01:25]} d5 {[%emt 0:04:25]} 10. e5 {[%emt 0:06:30]} Nfd7 {[%emt 0:00:04]} 11. f4 {[%emt 0:01:18]} f6 {[%emt 0:11:49]} 12. c3 {[%emt 0:05:08]} fxe5 {[%emt 0:04:54]} 13. fxe5 {[%emt 0:02:20]} bxc3 {[%emt 0:11:08]} 14. bxc3 {[%emt 0:08:46]} Nb6 {[%emt 0:00:18]} 15. Nf4 {[%emt 0:02:06]} Nc4 {[%emt 0:20:29]} 16. Bxc4 {[%emt 0:03:26]} dxc4 {[%emt 0:00:03]} 17. Qe2 {[%emt 0:00:08]} Rxf4 {[%emt 0:06:36]} 18. Bxf4 {[%emt 0:00:07]} Be6 {[%emt 0:00:02]} 19. h4 {[%emt 0:06:57]} h5 {[%emt 0:00:32]} 20. Qe4 {[%emt 0:02:40]} Ra6 {[%emt 0:00:47]} 21. Qxg6 {[%emt 0:00:24]} Bf7 {[%emt 0:00:38]} 22. Qg3 {[%emt 0:01:23]} Nd7 {[%emt 0:02:58]} 23. O-O {[%emt 0:01:26]} Rg6 {[%emt 0:02:40]} 24. Bg5 {[%emt 0:00:54]} Nf8 {[%emt 0:02:13]} 25. Qf3 {[%emt 0:00:53]} Be8 {[%emt 0:01:03]} 26. Nc1 {[%emt 0:04:41]} Nh7 {[%emt 0:00:40]} 27. Ne2 {[%emt 0:00:06]} Nxg5 {[%emt 0:00:26]} 28. hxg5 {[%emt 0:00:05]} Rxg5 {[%emt 0:00:07]} 29. Nf4 {[%emt 0:00:15]} Qd7 {[%emt 0:00:50]} 30. Qd5+ {[%emt 0:01:16]} Kh7 {[%emt 0:00:08]} 31. Qxa5 {[%emt 0:04:58]} Bh6 {[%emt 0:01:17]} 32. Qa8 {[%emt 0:02:42]} Qc6 {[%emt 0:00:32]} 33. Qxc6 {[%emt 0:01:54]} Bxc6 {[%emt 0:00:03]} 34. Ra2 {[%emt 0:02:34]} Rf5 {[%emt 0:00:38]} 35. Raf2 {[%emt 0:03:37]} h4 {[%emt 0:00:48]} 36. a5 {[%emt 0:01:18]} Bb7 {[%emt 0:00:30]} 37. Kh2 {[%emt 0:00:35]} Rg5 {[%emt 0:00:14]} 38. Rb2 {[%emt 0:01:14]} Be4 {[%emt 0:00:38]} 39. a6 {[%emt 0:06:37]} Rg3 {[%emt 0:00:22]} 40. a7 {[%emt 0:00:19]} Rxc3 {[%emt 0:00:17]} 41. Ra2 {[%emt 0:30:04]} Ba8 {[%emt 0:01:57]} 42. Ne6 {[%emt 0:00:00]} 1-0

[Event "9th Amsterdam Science Park A 2019"]
[Site "Amsterdam"]
[Date "2019.07.14"]
[Round "9.2"]
[White "De Rover, Yong Hoon"]
[Black "Ulybin, Mikhail"]
[Result "1/2-1/2"]
[ECO "C11"]
[WhiteElo "2391"]
[BlackElo "2469"]
[Annotator "ChessBase"]
[PlyCount "105"]
[EventDate "2019.07.06"]
[EventType "swiss"]
[EventCountry "NED"]
[SourceTitle "playchess.com"]
[Source "ChessBase"]
[SourceQuality "1"]
[TimeControl "40/5400+30:1800+30"]

1. e4 {[%emt 0:00:00]} e6 {[%emt 0:11:42]} 2. d4 {[%emt 0:00:00]} d5 {[%emt 0:00:58]} 3. Nc3 {[%emt 0:00:13]} Nf6 {[%emt 0:01:21]} 4. e5 {[%emt 0:00:11]} Nfd7 {[%emt 0:00:53]} 5. f4 {[%emt 0:00:11]} c5 {[%emt 0:01:11]} 6. Nf3 {[%emt 0:00:12]} Be7 {[%emt 0:01:24]} 7. Be3 {[%emt 0:02:26]} b6 {[%emt 0:01:48]} 8. Qd2 {[%emt 0:06:16]} O-O {[%emt 0:02:36]} 9. Be2 {[%emt 0:04:02]} Nc6 {[%emt 0:06:00]} 10. h4 {[%emt 0:03:07]} f6 {[%emt 0:06:36]} 11. dxc5 {[%emt 0:01:23]} Nxc5 {[%emt 0:03:34]} 12. Bb5 {[%emt 0:01:00]} Bb7 {[%emt 0:02:50]} 13. O-O-O {[%emt 0:00:35]} Rc8 {[%emt 0:15:47]} 14. Kb1 {[%emt 0:02:31]} fxe5 {[%emt 0:14:30]} 15. Bxc6 {[%emt 0:01:19]} Bxc6 {[%emt 0:00:41]} 16. Nxe5 {[%emt 0:00:13]} b5 {[%emt 0:04:30]} 17. h5 {[%emt 0:04:48]} b4 {[%emt 0:02:01]} 18. Bxc5 {[%emt 0:04:55]} bxc3 {[%emt 0:10:47]} 19. Bxe7 {[%emt 0:03:59]} Qxe7 {[%emt 0:01:04]} 20. Qd4 {[%emt 0:00:55]} Be8 {[%emt 0:06:18]} 21. Rd3 {[%emt 0:16:44]} cxb2 {[%emt 0:01:18]} 22. h6 {[%emt 0:23:19]} Bg6 {[%emt 0:00:50]} 23. Nxg6 {[%emt 0:01:33]} hxg6 {[%emt 0:00:06]} 24. Rg3 {[%emt 0:00:53]} Qf6 {[%emt 0:02:09]} 25. Qxa7 {[%emt 0:01:24]} Rf7 {[%emt 0:00:45]} 26. Qa6 {[%emt 0:00:56]} Rfc7 {[%emt 0:00:30]} 27. hxg7 {[%emt 0:05:50]} Kxg7 {[%emt 0:00:38]} 28. Rgh3 {[%emt 0:03:26]} Qf5 {[%emt 0:00:31]} 29. Qd3 {[%emt 0:00:21]} Qxd3 {[%emt 0:00:32]} 30. cxd3 {[%emt 0:00:33]} Rc2 {[%emt 0:00:30]} 31. g4 {[%emt 0:00:17]} Kf6 {[%emt 0:00:29]} 32. R3h2 {[%emt 0:01:53]} Rxh2 {[%emt 0:00:30]} 33. Rxh2 {[%emt 0:00:06]} Rc1+ {[%emt 0:00:34]} 34. Kxb2 {[%emt 0:00:21]} Rf1 {[%emt 0:00:12]} 35. Rh8 {[%emt 0:09:33]} Ke7 {[%emt 0:00:45]} 36. Rh7+ {[%emt 0:00:48]} Kd6 {[%emt 0:00:13]} 37. Rf7 {[%emt 0:00:26]} Rf2+ {[%emt 0:00:34]} 38. Kb3 {[%emt 0:00:37]} Rd2 {[%emt 0:00:37]} 39. Kc3 {[%emt 0:00:23]} Rxa2 {[%emt 0:00:07]} 40. Rf6 {[%emt 0:00:11]} Ra4 {[%emt 0:00:59]} 41. d4 {[%emt 0:13:36]} Ra3+ {[%emt 0:14:12]} 42. Kd2 {[%emt 0:00:18]} Ra2+ {[%emt 0:05:54]} 43. Ke3 {[%emt 0:00:28]} Ra3+ {[%emt 0:00:41]} 44. Kf2 {[%emt 0:06:50]} Ke7 {[%emt 0:02:17]} 45. Rxg6 {[%emt 0:00:32]} Kf7 {[%emt 0:02:43]} 46. Rh6 {[%emt 0:00:57]} Rd3 {[%emt 0:00:56]} 47. g5 {[%emt 0:01:31]} Rxd4 {[%emt 0:00:42]} 48. Kg3 {[%emt 0:02:26]} Rd1 {[%emt 0:02:21]} 49. Rh7+ {[%emt 0:03:22]} Kg6 {[%emt 0:00:36]} 50. Rh6+ {[%emt 0:03:04]} Kf7 {[%emt 0:00:30]} 51. Rh7+ {[%emt 0:00:27]} Kg6 {[%emt 0:00:20]} 52. Rh6+ {[%emt 0:01:42]} Kf7 {[%emt 0:00:48]} 53. Rh7+ 1/2-1/2

[Event "9th Amsterdam Science Park A 2019"]
[Site "Amsterdam"]
[Date "2019.07.14"]
[Round "9.3"]
[White "Meshkovs, Nikita"]
[Black "Gleizerov, Evgeny"]
[Result "0-1"]
[ECO "A00"]
[WhiteElo "2550"]
[BlackElo "2498"]
[Annotator "ChessBase"]
[PlyCount "84"]
[EventDate "2019.07.06"]
[EventType "swiss"]
[EventCountry "NED"]
[SourceTitle "playchess.com"]
[Source "ChessBase"]
[SourceQuality "1"]
[TimeControl "40/5400+30:1800+30"]

1. g3 {[%emt 0:00:00]} d5 {[%emt 0:03:09]} 2. Bg2 {[%emt 0:00:00]} g6 {[%emt 0:03:34]} 3. c4 {[%emt 0:03:03]} d4 {[%emt 0:00:09]} 4. d3 {[%emt 0:00:56]} Bg7 {[%emt 0:00:17]} 5. Nf3 {[%emt 0:00:22]} e5 {[%emt 0:00:05]} 6. b4 {[%emt 0:01:37]} Ne7 {[%emt 0:00:10]} 7. Nbd2 {[%emt 0:00:55]} O-O {[%emt 0:02:20]} 8. O-O {[%emt 0:01:00]} a5 {[%emt 0:00:11]} 9. b5 {[%emt 0:00:15]} c5 {[%emt 0:00:03]} 10. bxc6 {[%emt 0:01:10]} Nexc6 {[%emt 0:00:31]} 11. Rb1 {[%emt 0:00:48]} Na6 {[%emt 0:01:06]} 12. Ne1 {[%emt 0:00:36]} Qe7 {[%emt 0:03:30]} 13. Nc2 {[%emt 0:02:14]} Ncb4 {[%emt 0:01:16]} 14. a3 {[%emt 0:04:16]} Nc6 {[%emt 0:07:23]} 15. Rb5 {[%emt 0:01:22]} Nc7 {[%emt 0:12:23]} 16. Rb3 {[%emt 0:03:48]} Rd8 {[%emt 0:03:16]} 17. Re1 {[%emt 0:07:25]} Na6 {[%emt 0:01:22]} 18. Rb5 {[%emt 0:02:58]} Nc7 {[%emt 0:10:39]} 19. Rb6 {[%emt 0:02:42]} Na6 {[%emt 0:01:42]} 20. Nb3 {[%emt 0:02:55]} a4 {[%emt 0:11:43]} 21. Nd2 {[%emt 0:02:02]} Bf8 {[%emt 0:00:58]} 22. Ne4 {[%emt 0:07:19]} Qc7 {[%emt 0:04:05]} 23. Rb5 {[%emt 0:05:04]} Be7 {[%emt 0:00:09]} 24. Bh6 {[%emt 0:01:49]} Na7 {[%emt 0:08:05]} 25. Rb2 {[%emt 0:06:32]} Rb8 {[%emt 0:01:20]} 26. e3 {[%emt 0:00:41]} b5 {[%emt 0:01:41]} 27. exd4 {[%emt 0:00:05]} bxc4 {[%emt 0:00:08]} 28. Rxb8 {[%emt 0:00:27]} Nxb8 {[%emt 0:01:04]} 29. dxe5 {[%emt 0:11:10]} cxd3 {[%emt 0:00:58]} 30. Nb4 {[%emt 0:01:07]} Nac6 {[%emt 0:09:13]} 31. Nf6+ {[%emt 0:06:47]} Bxf6 {[%emt 0:00:36]} 32. Nxc6 {[%emt 0:02:31]} Nxc6 {[%emt 0:00:05]} 33. exf6 {[%emt 0:00:04]} Be6 {[%emt 0:03:32]} 34. Qc1 {[%emt 0:06:07]} Rc8 {[%emt 0:00:49]} 35. Qc3 {[%emt 0:09:37]} Qa5 {[%emt 0:01:50]} 36. Rc1 {[%emt 0:00:59]} Qxc3 {[%emt 0:00:29]} 37. Rxc3 {[%emt 0:00:02]} Ne5 {[%emt 0:00:10]} 38. Rxc8+ {[%emt 0:01:32]} Bxc8 {[%emt 0:00:02]} 39. Kf1 {[%emt 0:06:30]} Nc4 {[%emt 0:02:20]} 40. Ke1 {[%emt 0:00:38]} Nxa3 {[%emt 0:00:53]} 41. Kd1 {[%emt 0:20:52]} Nc2 {[%emt 0:05:36]} 42. Bf4 {[%emt 0:09:13]} a3 {[%emt 0:01:00]} 0-1

[Event "9th Amsterdam Science Park A 2019"]
[Site "Amsterdam"]
[Date "2019.07.14"]
[Round "9.4"]
[White "Dimitrijeski, Kristian"]
[Black "Wunnink, Michael"]
[Result "1/2-1/2"]
[ECO "E32"]
[WhiteElo "2186"]
[BlackElo "2214"]
[Annotator "ChessBase"]
[PlyCount "42"]
[EventDate "2019.07.06"]
[EventType "swiss"]
[EventCountry "NED"]
[SourceTitle "playchess.com"]
[Source "ChessBase"]
[SourceQuality "1"]
[TimeControl "40/5400+30:1800+30"]

1. d4 {[%emt 0:00:00]} Nf6 {[%emt 0:00:00]} 2. c4 {[%emt 0:00:00]} e6 {[%emt 0:00:00]} 3. Nc3 {[%emt 0:00:00]} Bb4 {[%emt 0:00:01]} 4. Qc2 {[%emt 0:00:49]} O-O {[%emt 0:00:25]} 5. Nf3 {[%emt 0:00:12]} d5 {[%emt 0:00:28]} 6. cxd5 {[%emt 0:00:38]} exd5 {[%emt 0:00:10]} 7. Bg5 {[%emt 0:00:19]} h6 {[%emt 0:00:36]} 8. Bh4 {[%emt 0:00:18]} c5 {[%emt 0:00:23]} 9. e3 {[%emt 0:00:09]} cxd4 {[%emt 0:01:07]} 10. Nxd4 {[%emt 0:01:28]} Nc6 {[%emt 0:00:30]} 11. Rd1 {[%emt 0:12:33]} Bg4 {[%emt 0:00:43]} 12. Be2 {[%emt 0:02:06]} Nxd4 {[%emt 0:01:43]} 13. Rxd4 {[%emt 0:01:44]} Bxc3+ {[%emt 0:00:50]} 14. bxc3 {[%emt 0:09:20]} Bxe2 {[%emt 0:00:55]} 15. Bxf6 {[%emt 0:00:53]} Qxf6 {[%emt 0:00:31]} 16. Qxe2 {[%emt 0:04:30]} Rac8 {[%emt 0:08:37]} 17. Qd3 {[%emt 0:02:02]} Rc5 {[%emt 0:02:54]} 18. O-O {[%emt 0:03:30]} Qc6 {[%emt 0:03:27]} 19. Rc1 {[%emt 0:01:37]} Rc8 {[%emt 0:03:01]} 20. g3 {[%emt 0:00:53]} b5 {[%emt 0:12:51]} 21. Qf5 {[%emt 0:11:00]} Qe6 {[%emt 0:16:31]} 1/2-1/2